fUSD/lending_fUSD_20260520
["ID","MTS","AMOUNT","RATE_DAILY","PERIOD"]
[422673007,1779232239000,-172.17952125,0.00014249,2]
[422673013,1779232239000,-500.0,0.00014274,2]
[422673012,1779232239000,-500.0,0.00014274,2]
[422673015,1779232239000,-500.0,0.00014274,2]
[422673011,1779232239000,-2002.89,0.00014274,2]
[422673010,1779232239000,-500.0,0.00014273,2]
[422673014,1779232239000,-500.0,0.00014274,2]
[422673017,1779232239000,-500.0,0.00014274,2]
[422673040,1779232239000,-500.0,0.00014274,2]
[422673009,1779232239000,-5442.1560489,0.00014269,2]
[422673051,1779232239000,-623.0,0.00014274,2]
[422673062,1779232239000,-623.0,0.00014274,2]
[422673078,1779232239000,-1502.35376729,0.00014287,2]
[422673067,1779232239000,-623.0,0.00014274,2]
[422673068,1779232239000,-623.0,0.00014274,2]
[422673069,1779232239000,-623.0,0.00014274,2]
[422673071,1779232239000,-705.6612845,0.00014277,2]
[422673076,1779232239000,-500.0,0.00014283,2]
[422673070,1779232239000,-623.38423794,0.00014274,2]
[422673075,1779232239000,-4593.99029514,0.00014281,2]
[422673072,1779232239000,-210.11647569,0.00014279,2]
[422673074,1779232239000,-7905.28723818,0.00014281,2]
[422673073,1779232239000,-150.0,0.0001428,2]
[422673079,1779232239000,-150.0,0.00014297,2]
[422673081,1779232239000,-150.0,0.00014305,2]
[422673083,1779232239000,-500.0,0.00014307,2]
[422673085,1779232239000,-500.0,0.00014307,2]
[422673082,1779232239000,-1098.07046975,0.00014307,5]
[422673091,1779232239000,-500.0,0.00014307,2]
[422673042,1779232239000,-500.0,0.00014274,2]
[422673060,1779232239000,-623.0,0.00014274,2]
[422673063,1779232239000,-623.0,0.00014274,2]
[422673077,1779232239000,-150.0,0.00014284,2]
[422673066,1779232239000,-623.0,0.00014274,2]
[422673044,1779232239000,-500.0,0.00014274,2]
[422673059,1779232239000,-623.0,0.00014274,2]
[422673045,1779232239000,-500.0,0.00014274,2]
[422673052,1779232239000,-623.0,0.00014274,2]
[422673041,1779232239000,-500.0,0.00014274,2]
[422673048,1779232239000,-623.0,0.00014274,2]
[422673050,1779232239000,-623.0,0.00014274,2]
[422673049,1779232239000,-623.0,0.00014274,2]
[422673043,1779232239000,-500.0,0.00014274,2]
[422673047,1779232239000,-623.0,0.00014274,2]
[422673046,1779232239000,-349.07736479,0.00014274,2]
[422673057,1779232239000,-623.0,0.00014274,2]
[422673053,1779232239000,-623.0,0.00014274,2]
[422673064,1779232239000,-623.0,0.00014274,2]
[422673058,1779232239000,-623.0,0.00014274,2]
[422673054,1779232239000,-623.0,0.00014274,2]
[422673056,1779232239000,-623.0,0.00014274,2]
[422673061,1779232239000,-623.0,0.00014274,2]
[422673055,1779232239000,-623.0,0.00014274,2]
[422673065,1779232239000,-623.0,0.00014274,2]
[422673163,1779232240000,-150.0,0.00014418,2]
[422673159,1779232240000,-150.0,0.00014387,2]
[422673158,1779232240000,-150.0,0.00014387,2]
[422673160,1779232240000,-722.79,0.000144,2]
[422673154,1779232240000,-150.0,0.00014377,2]
[422673157,1779232240000,-166.66,0.00014384,2]
[422673155,1779232240000,-172.17952121,0.00014379,2]
[422673153,1779232240000,-150.0,0.00014366,2]
[422673143,1779232240000,-150.0,0.00014312,2]
[422673161,1779232240000,-150.0,0.00014401,2]
[422673146,1779232240000,-150.0,0.00014331,2]
[422673147,1779232240000,-150.0,0.00014331,2]
[422673156,1779232240000,-150.0,0.00014383,2]
[422673162,1779232240000,-2351.0,0.00014416,2]
[422673169,1779232240000,-500.0,0.00014451,2]
[422673176,1779232240000,-150.0,0.00014487,2]
[422673164,1779232240000,-150.0,0.00014424,2]
[422673179,1779232240000,-172.17952121,0.00014509,2]
[422673166,1779232240000,-5442.1560489,0.00014427,2]
[422673178,1779232240000,-150.0,0.00014504,2]
[422673177,1779232240000,-150.0,0.00014487,2]
[422673173,1779232240000,-150.0,0.0001447,2]
[422673167,1779232240000,-150.0,0.00014435,2]
[422673171,1779232240000,-150.0,0.00014452,2]
[422673174,1779232240000,-150.0,0.00014471,2]
[422673170,1779232240000,-500.0,0.00014451,2]
[422673141,1779232240000,-441.85596174,0.00014309,2]
[422673172,1779232240000,-150.0,0.00014462,2]
[422673165,1779232240000,-150.0,0.00014424,2]
[422673149,1779232240000,-150.0,0.00014344,2]
[422673125,1779232240000,-500.0,0.00014307,2]
[422673145,1779232240000,-150.0,0.0001432,2]
[422673168,1779232240000,-150.0,0.00014441,2]
[422673117,1779232240000,-500.0,0.00014307,2]
[422673119,1779232240000,-500.0,0.00014307,2]
[422673118,1779232240000,-500.0,0.00014307,2]
[422673126,1779232240000,-500.0,0.00014307,2]
[422673123,1779232240000,-150.0,0.00014307,2]
[422673124,1779232240000,-500.0,0.00014307,2]
[422673121,1779232240000,-500.0,0.00014307,2]
[422673120,1779232240000,-500.0,0.00014307,2]
[422673122,1779232240000,-500.0,0.00014307,2]
[422673127,1779232240000,-500.0,0.00014307,2]
[422673134,1779232240000,-2500000.0,0.00014308,2]
[422673135,1779232240000,-500.0,0.00014309,2]
[422673132,1779232240000,-500.0,0.00014307,2]
[422673128,1779232240000,-500.0,0.00014307,2]
[422673129,1779232240000,-500.0,0.00014307,2]
[422673137,1779232240000,-500.0,0.00014309,2]
[422673130,1779232240000,-500.0,0.00014307,2]
[422673131,1779232240000,-500.0,0.00014307,2]
[422673133,1779232240000,-500.0,0.00014307,2]
[422673138,1779232240000,-500.0,0.00014309,2]
[422673136,1779232240000,-206.54136022,0.00014309,2]
[422673140,1779232240000,-500.0,0.00014309,2]
[422673151,1779232240000,-350.0,0.00014352,2]
[422673150,1779232240000,-150.0,0.00014349,2]
[422673139,1779232240000,-544.39767985,0.00014309,2]
[422673152,1779232240000,-255.0,0.00014358,2]
[422673144,1779232240000,-150.0,0.00014315,2]
[422673142,1779232240000,-500.0,0.0001431,2]
[422673148,1779232240000,-150.0,0.00014332,2]
[422673181,1779232240000,-150.0,0.00014518,2]
[422673207,1779232240000,-150.0,0.00014625,2]
[422673182,1779232240000,-150.0,0.00014521,2]
[422673212,1779232240000,-500.0,0.00014625,2]
[422673215,1779232240000,-500.0,0.00014625,2]
[422673219,1779232240000,-1500000.0,0.00014626,2]
[422673230,1779232240000,-150.0,0.00014693,2]
[422673229,1779232240000,-150.0,0.00014687,2]
[422673218,1779232240000,-500.0,0.00014625,2]
[422673220,1779232240000,-172.17952121,0.0001464,2]
[422673222,1779232240000,-150.0,0.00014653,2]
[422673221,1779232240000,-150.0,0.00014642,2]
[422673224,1779232240000,-150.0,0.00014659,2]
[422673228,1779232240000,-150.0,0.00014687,2]
[422673226,1779232240000,-1000.0,0.00014675,2]
[422673223,1779232240000,-150.0,0.00014658,2]
[422673225,1779232240000,-491.22,0.00014672,2]
[422673227,1779232240000,-150.0,0.00014676,2]
[422673232,1779232240000,-150.0,0.00014705,2]
[422673191,1779232240000,-990.2045119,0.00014556,2]
[422673234,1779232240000,-150.0,0.00014711,2]
[422673233,1779232240000,-1000.0,0.00014707,2]
[422673236,1779232240000,-150.0,0.00014714,2]
[422673242,1779232240000,-500.0,0.00014726,2]
[422673235,1779232240000,-500.0,0.00014712,2]
[422673237,1779232240000,-500.0,0.00014726,2]
[422673240,1779232240000,-500.0,0.00014726,2]
[422673239,1779232240000,-500.0,0.00014726,2]
[422673238,1779232240000,-500.0,0.00014726,2]
[422673241,1779232240000,-500.0,0.00014726,2]
[422673243,1779232240000,-500.0,0.00014726,2]
[422673244,1779232240000,-500.0,0.00014726,2]
[422673210,1779232240000,-1098.07046975,0.00014625,5]
[422673214,1779232240000,-500.0,0.00014625,2]
[422673231,1779232240000,-150.0,0.00014705,2]
[422673208,1779232240000,-1098.07046975,0.00014625,5]
[422673216,1779232240000,-500.0,0.00014625,2]
[422673183,1779232240000,-10000.0,0.00014526,2]
[422673180,1779232240000,-150.0,0.00014518,2]
[422673184,1779232240000,-2267.8,0.00014532,2]
[422673189,1779232240000,-6516.06639181,0.00014555,2]
[422673187,1779232240000,-5849.033,0.00014548,2]
[422673186,1779232240000,-150.0,0.00014538,2]
[422673185,1779232240000,-150.0,0.00014537,2]
[422673190,1779232240000,-150.0,0.00014556,2]
[422673193,1779232240000,-150.0,0.00014565,2]
[422673204,1779232240000,-150.0,0.00014612,2]
[422673192,1779232240000,-150.0,0.00014558,2]
[422673195,1779232240000,-150.0,0.00014578,2]
[422673194,1779232240000,-150.0,0.00014573,2]
[422673188,1779232240000,-274.12509003,0.00014555,2]
[422673196,1779232240000,-419.672,0.00014578,2]
[422673213,1779232240000,-500.0,0.00014625,2]
[422673203,1779232240000,-150.0,0.00014612,2]
[422673209,1779232240000,-1098.07046975,0.00014625,5]
[422673217,1779232240000,-500.0,0.00014625,2]
[422673211,1779232240000,-500.0,0.00014625,2]
[422673206,1779232240000,-578.35435466,0.00014616,2]
[422673205,1779232240000,-150.0,0.00014612,2]
[422673202,1779232240000,-150.0,0.00014607,2]
[422673200,1779232240000,-150.0,0.0001459,2]
[422673201,1779232240000,-1502.35376727,0.00014594,2]
[422673199,1779232240000,-5442.1560489,0.00014585,2]
[422673198,1779232240000,-500.0,0.00014584,2]
[422673197,1779232240000,-1000.0,0.00014579,2]
[422673267,1779232241000,-150.0,0.00014836,2]
[422673277,1779232241000,-2267.8,0.00014878,2]
[422673270,1779232241000,-51055.36084201,0.0001485,2]
[422673276,1779232241000,-150.0,0.00014866,2]
[422673268,1779232241000,-150.0,0.00014846,2]
[422673278,1779232241000,-200.0,0.00014879,2]
[422673260,1779232241000,-150.0,0.00014797,2]
[422673274,1779232241000,-500.0,0.00014858,2]
[422673275,1779232241000,-234.28657,0.0001486,2]
[422673269,1779232241000,-150.0,0.00014848,2]
[422673279,1779232241000,-150.0,0.00014883,2]
[422673272,1779232241000,-234.28657,0.0001485,2]
[422673273,1779232241000,-150.0,0.0001485,2]
[422673280,1779232241000,-1000.0,0.00014883,2]
[422673283,1779232241000,-402.44586272,0.000149,2]
[422673262,1779232241000,-150.0,0.00014799,2]
[422673271,1779232241000,-234.28657,0.0001485,2]
[422673263,1779232241000,-150.0,0.00014814,2]
[422673253,1779232241000,-150.0,0.00014745,2]
[422673265,1779232241000,-150.0,0.0001482,2]
[422673282,1779232241000,-150.0,0.00014893,2]
[422673254,1779232241000,-150.0,0.00014752,2]
[422673250,1779232241000,-1000.0,0.00014727,2]
[422673248,1779232241000,-11247.2150134,0.00014727,2]
[422673246,1779232241000,-414.8124978,0.00014726,2]
[422673252,1779232241000,-5442.1560489,0.00014742,2]
[422673249,1779232241000,-197535.5391482,0.00014727,2]
[422673261,1779232241000,-150.0,0.00014799,2]
[422673245,1779232241000,-500.0,0.00014726,2]
[422673255,1779232241000,-150.0,0.00014762,2]
[422673256,1779232241000,-150.0,0.00014762,2]
[422673259,1779232241000,-150.0,0.0001478,2]
[422673258,1779232241000,-150.0,0.00014772,2]
[422673266,1779232241000,-150.0,0.00014831,2]
[422673264,1779232241000,-200.0,0.00014816,2]
[422673257,1779232241000,-172.17952121,0.0001477,2]
[422673251,1779232241000,-150.0,0.00014728,2]
[422673284,1779232241000,-9622.21080747,0.000149,2]
[422673247,1779232241000,-3204.3272564,0.00014727,2]
[422673285,1779232241000,-624.53735492,0.000149,2]
[422673312,1779232241000,-150.0,0.00014969,2]
[422673314,1779232241000,-150.0,0.00014986,2]
[422673307,1779232241000,-500.0,0.00014932,2]
[422673316,1779232241000,-150.0,0.00014986,2]
[422673308,1779232241000,-150.0,0.00014935,2]
[422673313,1779232241000,-150.0,0.00014986,2]
[422673310,1779232241000,-2156.82,0.0001494,2]
[422673322,1779232241000,-578.35435466,0.0001499,2]
[422673315,1779232241000,-150.0,0.00014986,2]
[422673311,1779232241000,-150.0,0.00014952,2]
[422673317,1779232241000,-150.0,0.00014986,2]
[422673318,1779232241000,-150.0,0.00014986,2]
[422673320,1779232241000,-150.0,0.00014986,2]
[422673321,1779232241000,-172.20887091,0.00014986,2]
[422673323,1779232241000,-151.0,0.00014997,2]
[422673319,1779232241000,-150.0,0.00014986,2]
[422673281,1779232241000,-150.0,0.00014893,2]
[422673306,1779232241000,-150.0,0.00014917,2]
[422673299,1779232241000,-176.07089745,0.000149,2]
[422673309,1779232241000,-150.0,0.00014939,2]
[422673303,1779232241000,-150.0,0.000149,2]
[422673286,1779232241000,-407.86461,0.000149,2]
[422673287,1779232241000,-20175.42554435,0.000149,2]
[422673288,1779232241000,-1873.42176908,0.00014127,2]
[422673291,1779232241000,-2361.21968326,0.000149,2]
[422673290,1779232241000,-10400.35819286,0.00014127,2]
[422673289,1779232241000,-301.87915129,0.00014127,2]
[422673293,1779232241000,-5319.0,0.000149,5]
[422673302,1779232241000,-6516.06639181,0.000149,2]
[422673294,1779232241000,-172.17952121,0.000149,2]
[422673292,1779232241000,-2000.0,0.000149,2]
[422673295,1779232241000,-990.2045119,0.000149,2]
[422673304,1779232241000,-150.0,0.00014911,2]
[422673305,1779232241000,-150.0,0.00014915,2]
[422673301,1779232241000,-1502.35376727,0.000149,2]
[422673300,1779232241000,-5442.1560489,0.000149,2]
[422673297,1779232241000,-176.07089745,0.000149,2]
[422673298,1779232241000,-274.12509003,0.000149,2]
[422673296,1779232241000,-176.07089747,0.000149,2]
[422673326,1779232242000,-666.0,0.00014999,2]
[422673324,1779232242000,-1098.07046974,0.00014999,5]
[422673328,1779232242000,-300.0,0.00014999,2]
[422673327,1779232242000,-300.0,0.00014999,2]
[422673325,1779232242000,-300.0,0.00014999,2]
[422673332,1779232242000,-3734720.91497558,0.00015,2]
[422673331,1779232242000,-666.0,0.00014999,2]
[422673330,1779232242000,-300.0,0.00014999,2]
[422673333,1779232242000,-472.73963863,0.00015,2]
[422673329,1779232242000,-705.91237391,0.00014999,2]
[422673334,1779232242000,-428.53781818,0.00015,2]
[422673335,1779232242000,-503.33128176,0.00015,2]
[422673338,1779232243000,-351.9,0.00014209,2]
[422673348,1779232246000,-818.33391473,0.00014239,2]
[422673347,1779232246000,-444.41198527,0.00014209,2]
[422673365,1779232247000,-10089.31720377,0.00014239,2]
[422673367,1779232247000,-39163.06704527,0.00015,2]
[422673370,1779232247000,-4500.58294981,0.00015,2]
[422673366,1779232247000,-1668.00799473,0.00014239,2]
[422673368,1779232247000,-8905.38275356,0.00015,2]
[422673369,1779232247000,-780.16930574,0.00015,2]
[422673374,1779233340000,1000.0,0.00030134,120]
[422673375,1779233387000,500.0,0.0003,120]
[422673376,1779233393000,500.0,0.0003,120]
[422673377,1779233401000,500.0,0.0003,120]
[422673378,1779233408000,500.0,0.0003,120]
[422673379,1779233415000,500.0,0.0003,120]
[422673380,1779233416000,160.04,0.00028973,120]
[422673389,1779233431000,-397.65177224,0.00011728,2]
[422673388,1779233431000,-671.18141117,0.00011728,2]
[422673390,1779233431000,-413.73197914,0.00011743,2]
[422673391,1779233431000,-1400.50802086,0.00011743,2]
[422673396,1779233431000,-250.0,0.00011903,2]
[422673394,1779233431000,-250.0,0.00011844,2]
[422673395,1779233431000,-150.0,0.00011869,2]
[422673392,1779233431000,-153.55,0.00011748,2]
[422673398,1779233431000,-94.03122094,0.00011922,2]
[422673393,1779233431000,-150.0,0.00011819,2]
[422673416,1779233432000,-1814.24,0.0001233,2]
[422673414,1779233432000,-193.08,0.00012329,2]
[422673412,1779233432000,-200.0,0.00012136,2]
[422673411,1779233432000,-1814.24,0.00012036,2]
[422673409,1779233432000,-299.99,0.00011985,2]
[422673410,1779233432000,-1332.24,0.00011985,2]
[422673408,1779233432000,-9999.99,0.00011985,2]
[422673405,1779233432000,-9710.75,0.00011923,2]
[422673404,1779233432000,-163.43,0.00011922,2]
[422673407,1779233432000,-150.99,0.00011985,2]
[422673403,1779233432000,-1105.96877906,0.00011922,2]
[422673415,1779233432000,-160.04,0.00012329,2]
[422673406,1779233432000,-2000.0,0.00011985,2]
[422673417,1779233432000,-150.0,0.00012379,7]
[422673413,1779233432000,-150.0,0.00012136,7]
[422673419,1779233432000,-6653.77192194,0.00012586,2]
[422673418,1779233432000,-200.0,0.000125,4]
[422673432,1779233432000,-16415.97493149,0.00012676,2]
[422673431,1779233432000,-16459.59420716,0.00012676,2]
[422673428,1779233432000,-441.85596174,0.00012675,2]
[422673427,1779233432000,-544.39767985,0.00012675,2]
[422673429,1779233432000,-500.0,0.00012675,2]
[422673426,1779233432000,-206.54136022,0.00012675,2]
[422673430,1779233432000,-500.0,0.00012675,2]
[422673425,1779233432000,-500.0,0.00012675,2]
[422673423,1779233432000,-710.01500542,0.00012666,2]
[422673433,1779233432000,-7432.11784761,0.00012676,2]
[422673422,1779233432000,-1814.24,0.00012623,2]
[422673421,1779233432000,-500.0,0.000126,4]
[422673420,1779233432000,-150.0,0.00012599,2]
[422673424,1779233432000,-500.0,0.00012675,2]
[422673446,1779233437000,-500.0,0.00012675,2]
[422673441,1779233437000,-500.0,0.00012675,2]
[422673442,1779233437000,-500.0,0.00012675,2]
[422673444,1779233437000,-500.0,0.00012675,2]
[422673437,1779233437000,-500.0,0.00012675,2]
[422673435,1779233437000,-500.0,0.00012675,2]
[422673438,1779233437000,-500.0,0.00012675,2]
[422673436,1779233437000,-500.0,0.00012675,2]
[422673434,1779233437000,-500.0,0.00012675,2]
[422673443,1779233437000,-500.0,0.00012675,2]
[422673440,1779233437000,-500.0,0.00012675,2]
[422673445,1779233437000,-500.0,0.00012675,2]
[422673439,1779233437000,-500.0,0.00012675,2]
[422673447,1779233437000,-500.0,0.00012675,2]
[422673448,1779233437000,-500.0,0.00012675,2]
[422673465,1779233437000,-500.0,0.00012675,2]
[422673457,1779233437000,-500.0,0.00012675,2]
[422673455,1779233437000,-500.0,0.00012675,2]
[422673453,1779233437000,-500.0,0.00012675,2]
[422673464,1779233437000,-500.0,0.00012675,2]
[422673462,1779233437000,-222.27301488,0.00012675,2]
[422673451,1779233437000,-500.0,0.00012675,2]
[422673452,1779233437000,-500.0,0.00012675,2]
[422673449,1779233437000,-500.0,0.00012675,2]
[422673460,1779233437000,-500.0,0.00012675,2]
[422673450,1779233437000,-500.0,0.00012675,2]
[422673536,1779233438000,-292.55428223,0.00013052,2]
[422673538,1779233438000,-10000.0,0.00013059,2]
[422673540,1779233438000,-565.40442062,0.00013073,2]
[422673534,1779233438000,-9735.77981234,0.00013031,2]
[422673518,1779233438000,-1098.07046975,0.00012899,3]
[422673520,1779233438000,-150.0,0.00012899,2]
[422673532,1779233438000,-11102.34050776,0.00013031,2]
[422673578,1779233438000,-150.0,0.00013488,2]
[422673528,1779233438000,-215.15951567,0.00013008,2]
[422673544,1779233438000,-9504.1147648,0.00013073,2]
[422673522,1779233438000,-1300.0,0.000129,4]
[422673530,1779233438000,-160.0,0.00013008,2]
[422673553,1779233438000,-1500000.0,0.00013159,2]
[422673548,1779233438000,-712.99022706,0.00013111,2]
[422673550,1779233438000,-1680.0,0.00013114,2]
[422673542,1779233438000,-1502.35376729,0.00013073,2]
[422673546,1779233438000,-150.0,0.00013107,7]
[422673555,1779233438000,-500.0,0.00013173,2]
[422673558,1779233438000,-11102.34050776,0.00013262,2]
[422673559,1779233438000,-9735.77981234,0.00013262,2]
[422673557,1779233438000,-270.56781905,0.00013177,2]
[422673561,1779233438000,-2000.0,0.00013483,2]
[422673560,1779233438000,-500.0,0.00013447,2]
[422673563,1779233438000,-150.0,0.00013488,2]
[422673574,1779233438000,-150.0,0.00013488,2]
[422673576,1779233438000,-150.0,0.00013488,2]
[422673526,1779233438000,-250.0,0.00013001,2]
[422673552,1779233438000,-710.01500542,0.00013149,2]
[422673516,1779233438000,-1098.07046975,0.00012899,3]
[422673476,1779233438000,-500.0,0.00012675,2]
[422673524,1779233438000,-1814.24,0.00012917,2]
[422673580,1779233438000,-11102.34050776,0.00013494,2]
[422673466,1779233438000,-500.0,0.00012675,2]
[422673467,1779233438000,-500.0,0.00012675,2]
[422673469,1779233438000,-500.0,0.00012675,2]
[422673470,1779233438000,-500.0,0.00012675,2]
[422673468,1779233438000,-500.0,0.00012675,2]
[422673474,1779233438000,-500.0,0.00012675,2]
[422673471,1779233438000,-500.0,0.00012675,2]
[422673472,1779233438000,-500.0,0.00012675,2]
[422673480,1779233438000,-700.0,0.000127,4]
[422673478,1779233438000,-2459692.31301374,0.00012676,2]
[422673482,1779233438000,-150.0,0.00012743,7]
[422673484,1779233438000,-4170.3749,0.00012799,2]
[422673486,1779233438000,-1000.0,0.000128,4]
[422673496,1779233438000,-210.11647569,0.00012836,2]
[422673498,1779233438000,-5849.033,0.00012836,2]
[422673491,1779233438000,-9735.77981241,0.000128,2]
[422673493,1779233438000,-402.44586272,0.000128,2]
[422673488,1779233438000,-11102.3405078,0.000128,2]
[422673500,1779233438000,-419.672,0.00012836,2]
[422673495,1779233438000,-270.56781905,0.00012832,2]
[422673502,1779233438000,-1506.03738801,0.00012876,2]
[422673506,1779233438000,-2002.89,0.00012877,2]
[422673504,1779233438000,-6049.0,0.00012877,2]
[422673508,1779233438000,-150.0,0.00012891,2]
[422673510,1779233438000,-500.0,0.00012899,2]
[422673512,1779233438000,-1098.07046974,0.00012899,3]
[422673514,1779233438000,-1098.07046975,0.00012899,3]
[422673565,1779233438000,-150.0,0.00013488,2]
[422673625,1779233438000,-500.0,0.00013698,2]
[422673566,1779233438000,-150.0,0.00013488,2]
[422673626,1779233438000,-500.0,0.00013698,2]
[422673624,1779233438000,-500.0,0.00013698,2]
[422673623,1779233438000,-500.0,0.00013698,2]
[422673622,1779233438000,-500.0,0.00013698,2]
[422673627,1779233438000,-500.0,0.00013698,2]
[422673629,1779233438000,-500.0,0.00013698,2]
[422673628,1779233438000,-500.0,0.00013698,2]
[422673630,1779233438000,-500.0,0.00013698,2]
[422673631,1779233438000,-500.0,0.00013698,2]
[422673634,1779233438000,-500.0,0.00013698,2]
[422673633,1779233438000,-500.0,0.00013698,2]
[422673636,1779233438000,-500.0,0.00013698,2]
[422673635,1779233438000,-500.0,0.00013698,2]
[422673637,1779233438000,-500.0,0.00013698,2]
[422673638,1779233438000,-500.0,0.00013698,2]
[422673639,1779233438000,-500.0,0.00013698,2]
[422673642,1779233438000,-500.0,0.00013698,2]
[422673641,1779233438000,-500.0,0.00013698,2]
[422673643,1779233438000,-168.64,0.00013698,2]
[422673640,1779233438000,-500.0,0.00013698,2]
[422673644,1779233438000,-500.0,0.00013698,2]
[422673647,1779233438000,-500.0,0.00013698,2]
[422673646,1779233438000,-500.0,0.00013698,2]
[422673648,1779233438000,-500.0,0.00013698,2]
[422673649,1779233438000,-500.0,0.00013698,2]
[422673645,1779233438000,-500.0,0.00013698,2]
[422673582,1779233438000,-9735.77981234,0.00013494,2]
[422673621,1779233438000,-500.0,0.00013698,2]
[422673620,1779233438000,-500.0,0.00013698,2]
[422673632,1779233438000,-500.0,0.00013698,2]
[422673619,1779233438000,-500.0,0.00013698,2]
[422673618,1779233438000,-500.0,0.00013698,2]
[422673584,1779233438000,-150.0,0.00013511,2]
[422673568,1779233438000,-150.0,0.00013488,2]
[422673572,1779233438000,-150.0,0.00013488,2]
[422673586,1779233438000,-270.56781905,0.00013521,2]
[422673589,1779233438000,-150.0,0.0001355,2]
[422673588,1779233438000,-150.0,0.00013535,2]
[422673598,1779233438000,-215.41524244,0.00013593,7]
[422673591,1779233438000,-150.0,0.00013559,2]
[422673600,1779233438000,-150.0,0.00013595,2]
[422673596,1779233438000,-150.0,0.00013593,7]
[422673602,1779233438000,-2000.0,0.00013598,2]
[422673593,1779233438000,-150.0,0.00013583,2]
[422673604,1779233438000,-150.0,0.00013607,2]
[422673570,1779233438000,-150.0,0.00013488,2]
[422673605,1779233438000,-150.0,0.00013613,2]
[422673603,1779233438000,-33191.258,0.00013598,2]
[422673615,1779233438000,-500.0,0.00013698,2]
[422673613,1779233438000,-255.0,0.00013695,2]
[422673609,1779233438000,-150.0,0.00013654,2]
[422673616,1779233438000,-500.0,0.00013698,2]
[422673611,1779233438000,-150.0,0.00013675,2]
[422673617,1779233438000,-500.0,0.00013698,2]
[422673614,1779233438000,-500.0,0.00013698,2]
[422673608,1779233438000,-166.68,0.00013631,2]
[422673610,1779233438000,-150.0,0.00013675,2]
[422673607,1779233438000,-150.0,0.0001363,2]
[422673606,1779233438000,-150.0,0.00013613,2]
[422673612,1779233438000,-150.0,0.00013678,2]
[422673697,1779233439000,-537.75217166,0.00013698,2]
[422673694,1779233439000,-500.0,0.00013698,2]
[422673692,1779233439000,-500.0,0.00013698,2]
[422673684,1779233439000,-500.0,0.00013698,2]
[422673690,1779233439000,-500.0,0.00013698,2]
[422673688,1779233439000,-500.0,0.00013698,2]
[422673687,1779233439000,-500.0,0.00013698,2]
[422673686,1779233439000,-500.0,0.00013698,2]
[422673680,1779233439000,-500.0,0.00013698,2]
[422673682,1779233439000,-500.0,0.00013698,2]
[422673693,1779233439000,-505.50097699,0.00013698,2]
[422673689,1779233439000,-500.0,0.00013698,2]
[422673691,1779233439000,-500.0,0.00013698,2]
[422673700,1779233439000,-500.0,0.00013698,2]
[422673695,1779233439000,-500.0,0.00013698,2]
[422673698,1779233439000,-607.92030629,0.00013698,2]
[422673710,1779233439000,-500.0,0.00013698,2]
[422673702,1779233439000,-500.0,0.00013698,2]
[422673701,1779233439000,-500.0,0.00013698,2]
[422673699,1779233439000,-500.0,0.00013698,2]
[422673707,1779233439000,-500.0,0.00013698,2]
[422673703,1779233439000,-500.0,0.00013698,2]
[422673704,1779233439000,-500.0,0.00013698,2]